fUST/lending_fUST_20250309
["ID","MTS","AMOUNT","RATE_DAILY","PERIOD"]
[355752753,1741532948807,-500.0,0.00028383,2]
[355752754,1741532948843,-810.63359726,0.00028383,2]
[355752755,1741532948874,-810.63359726,0.00028383,2]
[355752756,1741532949049,-810.63359726,0.00028383,2]
[355752757,1741532949087,-500.0,0.00028383,2]
[355752758,1741532949117,-810.63359726,0.00028383,2]
[355752759,1741532949142,-500.0,0.00028383,2]
[355752760,1741532949171,-810.63359726,0.00028383,2]
[355752761,1741532949204,-810.63359726,0.00028383,2]
[355752762,1741532949232,-810.63359726,0.00028383,2]
[355752763,1741532949259,-810.63359726,0.00028383,2]
[355752764,1741532949286,-810.63359726,0.00028383,2]
[355752765,1741532949313,-810.63359726,0.00028383,2]
[355752766,1741532949338,-810.63359726,0.00028383,2]
[355752767,1741532949364,-810.63359726,0.00028383,2]
[355752768,1741532949392,-810.63359726,0.00028383,2]
[355752769,1741532949417,-810.63359726,0.00028383,2]
[355752770,1741532949444,-810.63359726,0.00028383,2]
[355752771,1741532949471,-810.63359726,0.00028383,2]
[355752772,1741532949500,-810.63359726,0.00028383,2]
[355752773,1741532949530,-810.63359726,0.00028383,2]
[355752774,1741532949578,-810.63359726,0.00028383,2]
[355752775,1741532949624,-810.63359726,0.00028383,2]
[355752776,1741532949647,-500.0,0.00028383,2]
[355752777,1741532949670,-398.74732686,0.00028383,2]
[355752778,1741532949693,-500.0,0.00028383,2]
[355752779,1741532949716,-500.0,0.00028383,2]
[355752780,1741532949739,-500.0,0.00028383,2]
[355752781,1741532949767,-1198.84369548,0.00028383,2]
[355752782,1741532949790,-500.0,0.00028383,2]
[355752783,1741532949820,-1198.84369548,0.00028383,2]
[355752784,1741532949842,-500.0,0.00028383,2]
[355752785,1741532949865,-500.0,0.00028383,2]
[355752786,1741532949894,-1198.84369548,0.00028383,2]
[355752787,1741532949921,-1198.84369548,0.00028383,2]
[355752788,1741532949945,-500.0,0.00028383,2]
[355752789,1741532949972,-1198.84369548,0.00028383,2]
[355752790,1741532950001,-1198.84369548,0.00028383,2]
[355752791,1741532950030,-1198.84369548,0.00028383,2]
[355752792,1741532950059,-1198.84369548,0.00028383,2]
[355752793,1741532950089,-1198.84369548,0.00028383,2]
[355752794,1741532950127,-1198.84369548,0.00028383,2]
[355752795,1741532950176,-1198.84369548,0.00028383,2]
[355752796,1741532950216,-1198.84369548,0.00028383,2]
[355752797,1741532950250,-1198.84369548,0.00028383,2]
[355752798,1741532950278,-1198.84369548,0.00028383,2]
[355752799,1741532950308,-1198.84369548,0.00028383,2]
[355752800,1741532950338,-1198.84369548,0.00028383,2]
[355752801,1741532950366,-1198.84369548,0.00028383,2]
[355752802,1741532950394,-1198.84369548,0.00028383,2]
[355752803,1741532950425,-1198.84369548,0.00028383,2]
[355752804,1741532950455,-1198.84369548,0.00028383,2]
[355752805,1741532950489,-1198.84369548,0.00028383,2]
[355752806,1741532950516,-37317.206929,0.00028384,2]
[355752807,1741532950553,-186.54478239,0.00028393,2]
[355752808,1741532950576,-176.27227906,0.00028393,2]
[355752809,1741532950601,-530.88591916,0.00028393,2]
[355752810,1741532950630,-500.0,0.00028393,2]
[355752811,1741532950656,-500.0,0.00028393,2]
[355752812,1741532950677,-598.80577061,0.00028393,2]
[355752813,1741532950699,-2283.27913381,0.00028395,2]
[355752814,1741532950723,-2607.75954387,0.00028687,2]
[355752815,1741532950747,-152.0,0.0002873,2]
[355752816,1741532950770,-2000.0,0.00028788,2]
[355752817,1741532950792,-160.35,0.00028788,2]
[355752818,1741532950815,-206.95676997,0.00028797,2]
[355752819,1741532950836,-2000.000001,0.00028797,2]
[355752820,1741532950859,-358.47,0.00029188,2]
[355752821,1741532950882,-37317.206929,0.00029482,2]
[355752822,1741532950904,-24900.0,0.00029492,2]
[355752823,1741532950926,-500.0,0.0002956,2]
[355752824,1741532950948,-500.0,0.0002962,2]
[355752825,1741532950969,-500.0,0.0002962,2]
[355752826,1741532950990,-287.0,0.0003,2]
[355752827,1741532951010,-312.3129368,0.00030088,5]
[355752828,1741532951031,-500.0,0.00030088,5]
[355752829,1741532951053,-418.46718373,0.00030088,5]
[355752830,1741532951076,-501.66513458,0.00030088,5]
[355752831,1741532951098,-358.47,0.00030558,2]
[355752832,1741532951120,-420.0,0.0003064,2]
[355752833,1741532951142,-500.0,0.00031195,2]
[355752834,1741532951164,-2768.0047635,0.00031242,2]
[355752835,1741532951189,-694.3556873,0.0003139,2]
[355752836,1741532951210,-358.47,0.00031928,2]
[355752837,1741532951231,-682.18457376,0.000323,2]
[355752838,1741532951252,-1727.88402541,0.0003246,2]
[355752839,1741532951275,-999.999999,0.000328,3]
[355752840,1741532951436,1195.7499053,0.00028383,2]
[355752841,1741532951485,1195.7499053,0.00028383,2]
[355752842,1741532951516,1195.7499053,0.00028383,2]
[355752843,1741532951559,1195.7499053,0.00028383,2]
[355752844,1741532951590,1195.7499053,0.00028383,2]
[355752845,1741532951644,1195.7499053,0.00028383,2]
[355752846,1741532951678,1195.7499053,0.00028383,2]
[355752847,1741532951820,1195.7499053,0.00028383,2]
[355752848,1741532951853,1195.7499053,0.00028383,2]
[355752849,1741532951890,1195.7499053,0.00028383,2]
[355752850,1741532951922,1195.7499053,0.00028383,2]
[355752851,1741532951953,1195.7499053,0.00028383,2]
[355752852,1741532951993,1195.7499053,0.00028383,2]
[355752853,1741532952027,1195.7499053,0.00028383,2]
[355752854,1741532952101,1195.7499053,0.00028383,2]
[355752855,1741532952234,-2607.7595438,0.00033003,2]
[355752856,1741532952256,-587.0,0.00033079,2]
[355752857,1741532952278,-6515.72630363,0.0003309,2]
[355752858,1741532952318,500.0,0.00030242,5]
[355752859,1741532954119,-8330.24053782,0.0003309,2]
[355752860,1741532963074,-168.0,0.0003309,2]
[355752861,1741532963095,-22471.24008755,0.0003309,2]
[355752862,1741532963115,-766.65,0.000331,30]
[355752863,1741532963136,-428.07,0.000331,30]
[355752864,1741532963157,-17746.73027316,0.000331,30]
[355752865,1741532972103,-36688.03972684,0.000331,30]
[355752866,1741532972126,-500.0,0.00033273,5]
[355752867,1741532972150,-358.47,0.00033298,2]
[355752868,1741532972172,-2219.86,0.000333,30]
[355752869,1741532972195,-293.1,0.000333,30]
[355752870,1741532972217,-5146.92564729,0.00033436,2]
[355752871,1741532972240,-1000.0,0.00033852,5]
[355752872,1741532972261,-160.0,0.00033931,2]
[355752873,1741532972283,-160.0,0.00033931,2]
[355752874,1741532972306,-358.47,0.00034667,2]
[355752875,1741532972329,-500.22200962,0.0003494,5]
[355752876,1741532972350,-188.252,0.00035068,5]
[355752877,1741532972372,-152.08575,0.00035068,5]
[355752878,1741532972394,-500.0,0.00035099,5]
[355752879,1741532972416,-500.0,0.000354,5]
[355752880,1741532972439,-503.90034788,0.000354,5]
[355752881,1741532972460,-1819.9795269,0.00035531,2]
[355752882,1741532972481,-514.03205606,0.00035567,5]
[355752883,1741532972504,-15555.67399697,0.00035583,3]
[355752884,1741532972529,-2866.75310148,0.00035583,3]
[355752888,1741532981352,559.22445066,0.00028383,2]
[355752889,1741532981406,559.22445066,0.00028383,2]
[355752890,1741532981469,559.22445066,0.00028383,2]
[355752891,1741532981600,559.22445066,0.00028383,2]
[355752892,1741532981655,559.22445066,0.00028383,2]
[355752893,1741532981711,559.22445066,0.00028383,2]
[355752894,1741532981841,132.32563413,0.00028383,2]
[355752907,1741533032286,500.0,0.000284,5]
[355752925,1741533033047,-300.0,0.00028382,2]
[355752926,1741533033058,-426.89881653,0.00028383,2]
[355752927,1741533033068,-239.83994013,0.00028383,2]
[355752928,1741533033081,-319.38451053,0.00028383,2]
[355752929,1741533033091,-45.90767947,0.00028383,2]
[355752930,1741533034292,-500.0,0.000284,2]
[355752931,1741533034302,-500.0,0.00030242,5]
[355752932,1741533034312,-420.0,0.0003064,2]
[355752933,1741533034321,-587.0,0.00033079,2]
[355752934,1741533034331,-302.54,0.00033286,2]
[355752935,1741533034340,-751.35030706,0.00033879,2]
[355752936,1741533034369,-248.64969294,0.00033879,2]
[355752937,1741533034379,-302.54,0.00034656,2]
[355752938,1741533034389,-160.0,0.00035583,3]
[355752939,1741533034399,-34450.45382752,0.00035583,3]
[355752940,1741533034408,-500.0,0.00035607,7]
[355752941,1741533034418,-619.16403943,0.00035607,7]
[355752942,1741533034428,-15555.67399697,0.00035608,2]
[355752943,1741533034438,-416.66666667,0.00035609,2]
[355752944,1741533034447,-823.0,0.00035711,2]
[355752945,1741533034457,-500.0,0.00035721,5]
[355752946,1741533034466,-1000.0,0.00035721,5]
[355752947,1741533034476,-386.292606,0.0003589,2]
[355752948,1741533034485,-302.54,0.00036026,2]
[355752949,1741533034495,-891.80482494,0.000362,98]
[355752950,1741533034504,-891.80482491,0.000362,98]
[355752951,1741533034514,-302.54,0.00037396,2]
[355752952,1741533034523,-185.47255163,0.000374,2]
[355752953,1741533034533,-1727.88402541,0.0003746,2]
[355752954,1741533034542,-37317.206929,0.0003749,3]
[355752955,1741533034553,-428.07,0.000375,30]
[355752956,1741533034564,-1829.53,0.000375,14]
[355752957,1741533034574,-293.1,0.000376,30]
[355752958,1741533034583,-2219.86,0.000381,30]
[355752959,1741533034592,-1152.0,0.00038553,5]
[355752960,1741533034603,-157.11897997,0.00038752,5]
[355752961,1741533034612,-302.54,0.00038766,2]
[355752962,1741533034622,-891.80482491,0.00039359,116]
[355752963,1741533034631,-302.54,0.00040135,2]
[355752964,1741533034642,-250.83038847,0.00040879,5]
[355752965,1741533034653,-386.292606,0.00041211,2]
[355752966,1741533034662,-1377.16,0.000413,30]
[355752967,1741533034672,-250.0,0.00041343,2]
[355752968,1741533034682,-287.500388,0.00041348,2]
[355752969,1741533034692,-302.54,0.00041505,30]
[355752970,1741533034702,-1613.0,0.00041621,5]
[355752971,1741533034711,-200.0,0.00042,2]
[355752972,1741533034720,-152.08575,0.00042121,14]
[355752973,1741533034730,-302.54,0.00042875,30]
[355752974,1741533034739,-428.07,0.000429,30]
[355752975,1741533034748,-1829.53,0.000429,14]
[355752976,1741533034758,-500.0,0.00043835,120]
[355752977,1741533034768,-1500.0,0.00043871,10]
[355752978,1741533034777,-74634.413858,0.0004389,3]
[355752979,1741533034787,-1500.0,0.00043898,2]
[355752980,1741533034796,-293.1,0.000439,30]
[355752981,1741533034806,-48991.29,0.000439,30]
[355752982,1741533034815,-689.98,0.000439,30]
[355752983,1741533034825,-200.0,0.00044,2]
[355752984,1741533034835,-302.54,0.00044245,30]
[355752985,1741533034844,-1377.16,0.000443,30]
[355752986,1741533034853,-500.0,0.00044383,120]
[355752987,1741533034863,-2219.86,0.000444,30]
[355752988,1741533034873,-457.80660294,0.00044931,120]
[355752989,1741533034882,-2258.0,0.00044933,5]
[355752990,1741533034892,-891.80482491,0.00045383,120]
[355752991,1741533034901,-302.54,0.00045615,30]
[355752992,1741533034911,-572.78307298,0.0004574,10]
[355752993,1741533034920,-191.10687225,0.00046,30]
[355752994,1741533034930,-1346.02603186,0.00046475,2]
[355752995,1741533034939,-488.9661807,0.00046475,2]
[355752996,1741533034948,-17679.87321488,0.00046475,2]
[355752997,1741533034958,-37317.206929,0.0004649,4]
[355752998,1741533034968,-10000.00000099,0.000465,8]
[355752999,1741533034978,-1829.53,0.000465,30]
[355753000,1741533034988,-386.292606,0.00046532,2]
[355753001,1741533034997,-500.0,0.00046573,2]
[355753002,1741533035007,-500.0,0.00046573,10]
[355753003,1741533035016,-500.0,0.00046573,10]
[355753004,1741533035025,-500.0,0.00046573,10]
[355753005,1741533035035,-500.0,0.00046573,10]
[355753006,1741533035045,-500.0,0.00046573,2]
[355753007,1741533035054,-500.0,0.00046573,10]
[355753008,1741533035064,-500.0,0.00046573,3]
[355753009,1741533035073,-500.0,0.00046573,10]
[355753010,1741533035083,-500.0,0.00046573,10]
[355753011,1741533035092,-441.40864746,0.00046573,10]
[355753012,1741533035102,-500.0,0.00046573,10]
[355753013,1741533035111,-500.0,0.00046573,10]
[355753014,1741533035120,-490.33575033,0.00046573,10]
[355753015,1741533035130,-500.0,0.00046573,10]
[355753016,1741533035140,-502.93317483,0.00046573,10]
[355753017,1741533035149,-502.90138588,0.00046573,10]
[355753018,1741533035159,-501.3007353,0.00046573,10]
[355753019,1741533035169,-585.34820817,0.00046573,10]
[355753020,1741533035179,-500.0,0.00046573,10]
[355753021,1741533035188,-648.32764092,0.00046573,10]
[355753022,1741533035198,-500.0,0.00046573,10]
[355753023,1741533035207,-500.0,0.00046575,2]
[355753024,1741533035216,-633.34271039,0.00046575,2]
[355753025,1741533035227,-504.18846995,0.00046575,120]
[355753026,1741533035236,-500.0,0.00046575,15]
[355753027,1741533035246,-500.0,0.00046575,120]
[355753028,1741533035255,-200.31335123,0.00046575,30]
[355753029,1741533035265,-500.0,0.00046575,120]
[355753030,1741533035275,-500.0,0.00046575,120]
[355753031,1741533035284,-500.0,0.00046575,120]
[355753032,1741533035294,-500.0,0.00046575,120]
[355753033,1741533035303,-513.58523069,0.00046575,120]
[355753034,1741533035313,-500.0,0.00046575,120]
[355753035,1741533035322,-500.0,0.00046575,120]
[355753036,1741533035332,-507.30232455,0.00046575,120]
[355753037,1741533035341,-500.0,0.00046575,120]
[355753038,1741533035351,-500.0,0.00046575,120]
[355753039,1741533035360,-500.0,0.00046575,120]
[355753040,1741533035370,-500.0,0.00046575,120]
[355753041,1741533035380,-500.0,0.00046575,120]
[355753042,1741533035390,-500.0,0.00046575,120]
[355753043,1741533035399,-500.0,0.00046575,120]
[355753044,1741533035408,-500.0,0.00046575,120]
[355753045,1741533035418,-500.0,0.00046575,120]
[355753046,1741533035428,-500.0,0.00046575,120]
[355753047,1741533035437,-500.0,0.00046575,120]
[355753048,1741533035447,-500.0,0.00046575,120]
[355753049,1741533035456,-500.0,0.00046575,120]
[355753050,1741533035465,-500.0,0.00046575,120]
[355753051,1741533035475,-500.0,0.00046575,120]
[355753052,1741533035485,-265.87641343,0.00046575,120]
[355753053,1741533035494,-500.0,0.00046575,120]
[355753054,1741533035504,-500.0,0.00046575,120]
[355753055,1741533035513,-500.0,0.00046575,120]
[355753056,1741533035523,-1976.92,0.00046575,2]
[355753057,1741533035532,-500.0,0.00046575,120]
[355753058,1741533035542,-500.0,0.00046575,120]
[355753059,1741533035554,-500.0,0.00046575,120]
[355753060,1741533035565,-500.0,0.00046575,120]
[355753061,1741533035575,-500.0,0.00046575,120]
[355753062,1741533035584,-500.0,0.00046575,120]
[355753063,1741533035594,-500.0,0.00046575,120]
[355753064,1741533035603,-500.0,0.00046575,120]
[355753065,1741533035613,-500.0,0.00046575,120]
[355753066,1741533035622,-500.0,0.00046575,120]
[355753067,1741533035634,-505.72653022,0.00046575,120]
[355753068,1741533035643,-500.0,0.00046575,120]
[355753069,1741533035653,-500.0,0.00046575,120]
[355753070,1741533035662,-783.2,0.00046575,120]
[355753071,1741533035671,-366.573347,0.00046575,120]
[355753072,1741533035680,-500.0,0.00046575,120]
[355753073,1741533035690,-500.0,0.00046575,120]
[355753074,1741533035699,-500.0,0.00046575,120]
[355753075,1741533035709,-500.0,0.00046575,120]
[355753076,1741533035718,-500.0,0.00046575,120]
[355753077,1741533035728,-500.0,0.00046575,120]
[355753078,1741533035738,-500.0,0.00046575,120]
[355753079,1741533035747,-543.99473509,0.00046575,120]
[355753080,1741533035756,-500.0,0.00046575,120]
[355753081,1741533035767,-500.0,0.00046575,120]
[355753082,1741533035777,-500.0,0.00046575,120]
[355753083,1741533035787,-1000.0,0.00046575,5]
[355753084,1741533035796,-500.0,0.00046575,120]
[355753085,1741533035805,-734.13,0.00046575,120]
[355753086,1741533035905,-500.0,0.00046575,120]
[355753087,1741533035915,-500.0,0.00046575,15]
[355753088,1741533035925,-500.0,0.00046575,120]
[355753089,1741533035934,-500.0,0.00046575,120]
[355753090,1741533035943,-513.164711,0.00046575,120]
[355753091,1741533035953,-500.0,0.00046575,120]
[355753092,1741533035964,-667.59,0.00046575,120]
[355753093,1741533035974,-498.05896904,0.00046575,120]
[355753094,1741533035984,-1916.63,0.00046575,2]
[355753095,1741533035993,-500.0,0.00046575,120]
[355753096,1741533036003,-3098.08,0.00046575,120]
[355753097,1741533036013,-500.0,0.00046575,120]
[355753098,1741533036023,-500.0,0.00046575,120]
[355753099,1741533036032,-500.0,0.00046575,120]
[355753100,1741533036042,-500.0,0.00046575,120]
[355753101,1741533036051,-1466.35,0.00046575,120]
[355753102,1741533036061,-500.0,0.00046575,120]
[355753103,1741533036071,-500.0,0.00046575,120]
[355753104,1741533036081,-500.0,0.00046575,2]
[355753105,1741533036091,-500.0,0.00046575,120]
[355753106,1741533036100,-500.0,0.00046575,120]
[355753107,1741533036110,-500.0,0.00046575,120]
[355753108,1741533036121,-500.0,0.00046575,120]
[355753109,1741533036131,-500.0,0.00046575,120]
[355753110,1741533036141,-500.0,0.00046575,120]
[355753111,1741533036152,-500.0,0.00046575,120]
[355753112,1741533036163,-359.86852065,0.00046575,120]
[355753113,1741533036172,-500.0,0.00046575,120]
[355753114,1741533036182,-500.0,0.00046575,120]
[355753115,1741533036192,-500.0,0.00046575,120]
[355753116,1741533036202,-500.0,0.00046575,120]
[355753117,1741533036212,-500.0,0.00046575,120]
[355753118,1741533036222,-250.78758562,0.00046575,120]
[355753119,1741533036232,-500.0,0.00046575,120]
[355753120,1741533036242,-500.0,0.00046575,120]
[355753121,1741533036251,-500.0,0.00046575,120]
[355753122,1741533036261,-500.0,0.00046575,120]
[355753123,1741533036271,-500.0,0.00046575,120]
[355753124,1741533036280,-1054.67,0.00046575,120]
[355753125,1741533036290,-500.0,0.00046575,120]
[355753126,1741533036299,-500.0,0.00046575,120]
[355753127,1741533036309,-500.0,0.00046575,120]
[355753128,1741533036319,-500.0,0.00046575,120]
[355753129,1741533036329,-500.0,0.00046575,120]
[355753130,1741533036338,-500.0,0.00046575,120]
[355753131,1741533036348,-500.0,0.00046575,120]
[355753132,1741533036357,-500.0,0.00046575,120]
[355753133,1741533036367,-500.0,0.00046575,120]
[355753134,1741533036378,-500.0,0.00046575,120]
[355753135,1741533036387,-500.0,0.00046575,120]
[355753136,1741533036397,-301.28230103,0.00046575,120]
[355753137,1741533036406,-500.0,0.00046575,120]
[355753138,1741533036416,-500.0,0.00046575,120]
[355753139,1741533036425,-500.0,0.00046575,120]
[355753140,1741533036435,-500.0,0.00046575,120]
[355753141,1741533036444,-500.0,0.00046575,120]
[355753142,1741533036454,-500.0,0.00046575,120]
[355753143,1741533036464,-500.0,0.00046575,120]
[355753144,1741533036473,-500.0,0.00046575,5]
[355753145,1741533036483,-500.0,0.00046575,120]
[355753146,1741533036492,-500.0,0.00046575,120]
[355753147,1741533036502,-286.64,0.00046575,120]
[355753148,1741533036512,-241.6006717,0.00046575,120]
[355753149,1741533036522,-500.0,0.00046575,120]
[355753150,1741533036532,-500.0,0.00046575,120]
[355753151,1741533036542,-500.0,0.00046575,120]
[355753152,1741533036554,-500.0,0.00046575,120]
[355753153,1741533036568,-223.36856463,0.00046575,120]
[355753154,1741533036578,-559.56110455,0.00046575,2]
[355753155,1741533036587,-500.0,0.00046575,120]
[355753156,1741533036598,-500.0,0.00046575,120]
[355753157,1741533036609,-500.0,0.00046575,120]
[355753158,1741533036619,-500.0,0.00046575,120]
[355753159,1741533036629,-500.0,0.00046575,120]
[355753160,1741533036640,-500.0,0.00046575,120]
[355753161,1741533036651,-500.0,0.00046575,120]
[355753162,1741533036661,-385.63934632,0.00046575,120]
[355753163,1741533036671,-513.14,0.00046575,120]
[355753164,1741533036680,-500.0,0.00046575,120]
[355753165,1741533036689,-597.86,0.00046575,120]
[355753166,1741533036699,-525.35443252,0.00046575,120]
[355753167,1741533036708,-543.87475811,0.00046575,120]
[355753168,1741533036717,-500.0,0.00046575,120]
[355753169,1741533036728,-511.75181439,0.00046575,120]
[355753170,1741533036738,-500.0,0.00046575,120]
[355753171,1741533036748,-500.0,0.00046575,120]
[355753172,1741533036758,-314.04524896,0.00046575,120]
[355753173,1741533036767,-500.0,0.00046575,120]
[355753174,1741533036777,-291.00774601,0.00046575,120]
[355753175,1741533036787,-809.37,0.00046575,120]
[355753176,1741533036796,-500.0,0.00046575,120]
[355753177,1741533036806,-500.0,0.00046575,120]
[355753178,1741533036816,-500.0,0.00046575,120]
[355753179,1741533036826,-500.0,0.00046575,120]
[355753180,1741533036836,-518.01088885,0.00046575,120]
[355753181,1741533036845,-500.0,0.00046575,120]
[355753182,1741533036856,-500.0,0.00046575,120]
[355753183,1741533036867,-1233.35,0.00046575,120]
[355753184,1741533036876,-500.0,0.00046575,120]
[355753185,1741533036885,-500.14,0.00046575,120]
[355753186,1741533036895,-511.46911951,0.00046575,120]
[355753187,1741533036905,-500.0,0.00046575,120]
[355753188,1741533036915,-500.0,0.00046575,120]
[355753189,1741533036924,-500.0,0.00046575,120]
[355753190,1741533036934,-500.0,0.00046575,120]
[355753191,1741533036943,-500.0,0.00046575,120]
[355753192,1741533036953,-500.0,0.00046575,120]
[355753193,1741533036962,-500.0,0.00046575,120]
[355753194,1741533036972,-2840.2,0.00046575,120]
[355753195,1741533036981,-3696.56,0.00046575,120]
[355753196,1741533036990,-500.0,0.00046575,120]
[355753197,1741533036999,-500.0,0.00046575,120]
[355753198,1741533037009,-999.0,0.00046575,120]
[355753199,1741533037018,-500.0,0.00046575,120]
[355753200,1741533037027,-1067.1,0.00046575,120]
[355753201,1741533037036,-500.0,0.00046575,120]
[355753202,1741533037046,-1159.41,0.00046575,120]
[355753203,1741533037055,-730.11,0.00046575,120]
[355753204,1741533037065,-500.0,0.00046575,120]
[355753205,1741533037074,-500.0,0.00046575,120]
[355753206,1741533037084,-500.0,0.00046575,120]
[355753207,1741533037093,-500.0,0.00046575,120]
[355753208,1741533037104,-500.0,0.00046575,120]
[355753209,1741533037114,-7289.04,0.00046575,120]
[355753210,1741533037124,-518.17115269,0.00046575,120]
[355753211,1741533037135,-500.0,0.00046575,120]
[355753212,1741533037145,-500.0,0.00046575,120]
[355753213,1741533037155,-500.0,0.00046575,120]
[355753214,1741533037165,-929.69,0.00046575,120]
[355753215,1741533037175,-500.0,0.00046575,120]
[355753216,1741533037184,-510.58161815,0.00046575,120]
[355753217,1741533037194,-686.5238343,0.00046575,120]
[355753218,1741533037539,500.0,0.000284,5]
[355753615,1741533044153,-160.0,0.00033779,2]
[355753617,1741533044162,-1000.0,0.00033879,5]
[355753619,1741533044172,-136.0,0.00043898,10]
[355753633,1741533047103,-1364.0,0.00043898,10]
[355753634,1741533047114,-886.76,0.00046565,10]
[355753635,1741533047123,-930.9261657,0.00046575,120]
[355753636,1741533047133,-540.46056154,0.00046575,120]
[355753637,1741533047142,-500.0,0.00046575,120]
[355753638,1741533047152,-500.0,0.00046575,120]
[355753639,1741533047162,-500.0,0.00046575,120]
[355753640,1741533047172,-500.0,0.00046575,120]
[355753641,1741533047182,-500.0,0.00046575,120]
[355753642,1741533047191,-500.0,0.00046575,120]
[355753643,1741533047201,-500.0,0.00046575,120]
[355753644,1741533047210,-500.0,0.00046575,120]
[355753645,1741533047219,-500.0,0.00046575,120]
[355753646,1741533047228,-738.02,0.00046575,120]
[355753647,1741533047238,-500.0,0.00046575,120]
[355753648,1741533047247,-954.33,0.00046575,120]
[355753649,1741533047256,-500.0,0.00046575,120]
[355753650,1741533047265,-1000.0,0.00046575,7]
[355753651,1741533047274,-500.0,0.00046575,120]
[355753652,1741533047284,-500.0,0.00046575,120]
[355753653,1741533047293,-12182.01996851,0.00046575,7]
[355753654,1741533071380,500.0,0.000284,5]
[355753655,1741533108052,200.0,0.0003,3]
[355753656,1741533152148,2127.36500055,0.0003,3]
[355753657,1741533435883,688.96858921,0.00028,10]
[355753658,1741533440185,800.36938322,0.00028,10]
[355753661,1741533864404,1486.054762,0.0003,60]
[355753664,1741533993123,-159.51766107,0.0002802,2]
[355753665,1741534026126,-340.48233893,0.0002802,2]
[355753666,1741534026149,-500.0,0.0002802,2]
[355753667,1741534026173,-444.97047223,0.0002802,2]
[355753668,1741534039102,-55.02952777,0.0002802,2]
[355753669,1741534039128,-166.66666666,0.00033527,2]
[355753670,1741534039152,-167.643,0.00033627,2]
[355753671,1741534039176,-157.757,0.00033627,2]
[355753672,1741534039202,-328.346001,0.00033735,2]
[355753673,1741534039231,-167.811582,0.00033793,2]
[355753674,1741534039256,-500.0,0.00033856,2]
[355753675,1741534039281,-400.0,0.00033942,2]
[355753676,1741534039306,-1590.7070563,0.00033943,2]
[355753677,1741534039329,-695.11223549,0.00033947,2]
[355753678,1741534047125,-1650.09997822,0.00033947,2]
[355753679,1741534053081,-248.83449017,0.00029115,2]
[355753680,1741534053107,-294.15407582,0.00033875,2]
[355753681,1741534070723,46500.0,0.00018,2]
[355753682,1741534070759,245.26959856,0.00023,2]
[355753683,1741534081188,10705.97855795,0.0002035,2]
[355753689,1741534111697,346.50516757,0.00022,2]
[355753690,1741534116865,4212.19958448,0.00022,2]
[355753691,1741534118871,205.22387757,0.00025,2]
[355753692,1741534119415,1665.40073973,0.00024,2]
[355753693,1741534119797,835.40404145,0.00025,2]
[355753694,1741534123023,706.41285824,0.00022,2]
[355753695,1741534123625,26298.80137731,0.00024,2]
[355753696,1741534150078,-300.0,0.00025999,2]
[355753697,1741534150099,-514.4472356,0.00026,2]
[355753698,1741534150119,-19900.0,0.00026,2]
[355753699,1741534150141,-2080.52183566,0.00027,2]
[355753700,1741534150162,-337.63192275,0.00027,2]
[355753701,1741534150184,-4971.18007459,0.000275,2]
[355753702,1741534150209,-509.40762997,0.000279,2]
[355753703,1741534150230,-16693.68770107,0.0002799,2]
[355753704,1741534150253,-420.0,0.00028137,2]